lending/lending_fUSD_20260312
["ID","MTS","AMOUNT","RATE_DAILY","PERIOD"]
[408273957,1773341444008,-151.0,0.00019799,2]
[408273958,1773341444017,-252.89333695,0.000198,2]
[408273959,1773341444027,-6347.0,0.00019809,2]
[408273960,1773341444037,-2312.0,0.00019827,2]
[408273961,1773341444047,-2267.0,0.00019827,2]
[408273962,1773341444056,-27000.0,0.000199,7]
[408273963,1773341444067,-500.0,0.00019961,2]
[408273964,1773341444076,-7254.38921986,0.0001998,2]
[408273965,1773341444087,-229.15310187,0.00019999,2]
[408273966,1773341444096,-500.0,0.00019999,2]
[408273967,1773341444105,-500.0,0.00019999,2]
[408273968,1773341444115,-500.0,0.00019999,2]
[408273969,1773341444124,-500.0,0.00019999,2]
[408273970,1773341444134,-500.0,0.00019999,2]
[408273971,1773341444144,-500.0,0.00019999,2]
[408273972,1773341444154,-410.40461894,0.00019999,2]
[408273973,1773341444164,-500.0,0.00019999,2]
[408273974,1773341444174,-500.0,0.00019999,2]
[408273975,1773341444184,-500.0,0.00019999,2]
[408273976,1773341444194,-500.0,0.00019999,2]
[408273977,1773341444203,-500.0,0.00019999,2]
[408273978,1773341444213,-500.0,0.00019999,2]
[408273979,1773341444222,-500.0,0.00019999,2]
[408273980,1773341444232,-500.0,0.00019999,2]
[408273981,1773341444242,-371.34530882,0.00019999,2]
[408273982,1773341444252,-500.0,0.00019999,2]
[408273983,1773341444262,-500.0,0.00019999,2]
[408273984,1773341444272,-219.47681528,0.0002,7]
[408273985,1773341444282,-992404.57493605,0.0002,2]
[408273986,1773341444292,-135208.84497713,0.0002,2]
[408273987,1773341444302,-628.64,0.0002,7]
[408273988,1773341444313,-434569.84379137,0.0002,2]
[408273989,1773341444322,-217.225635,0.0002,2]
[408273990,1773341444333,-151.0,0.0002,2]
[408273991,1773341444343,-151.0,0.0002,2]
[408273992,1773341444353,-151.0,0.0002,2]
[408273993,1773341444362,-151.0,0.0002,2]
[408273994,1773341444372,-151.0,0.0002,2]
[408273995,1773341444383,-151.0,0.0002,2]
[408273996,1773341444393,-215.896388,0.0002,2]
[408273997,1773341444403,-207.317476,0.0002,2]
[408273998,1773341444413,-207.317476,0.0002,2]
[408273999,1773341444623,-207.317476,0.0002,2]
[408274000,1773341444634,-207.317476,0.0002,2]
[408274001,1773341444644,-207.317476,0.0002,2]
[408274002,1773341444654,-207.317476,0.0002,2]
[408274003,1773341444663,-207.317476,0.0002,2]
[408274004,1773341444673,-207.317476,0.0002,2]
[408274005,1773341444682,-151.0,0.0002,2]
[408274006,1773341444692,-151.0,0.0002,2]
[408274007,1773341444702,-200.0,0.0002,2]
[408274008,1773341444712,-242.11,0.00020059,2]
[408274009,1773341444722,-823.0,0.00020378,2]
[408274010,1773341444732,-6851.07560243,0.00020405,2]
[408274011,1773341444742,-351.02,0.00020532,2]
[408274012,1773341444751,-401.0,0.00020536,2]
[408274013,1773341444761,-401.0,0.00020551,2]
[408274014,1773341444770,-401.0,0.00020558,2]
[408274015,1773341444780,-401.0,0.00020578,2]
[408274016,1773341444790,-3292.0,0.00020688,2]
[408274017,1773341444800,-558.0,0.00020723,2]
[408274018,1773341444811,-500.0,0.00020723,2]
[408274019,1773341444821,-401.0,0.00020727,2]
[408274020,1773341444831,-401.0,0.00020741,2]
[408274021,1773341444841,-401.0,0.00020758,2]
[408274022,1773341444851,-401.0,0.00020759,2]
[408274023,1773341444862,-401.0,0.00020762,2]
[408274024,1773341444871,-14951.58915564,0.00020784,2]
[408274025,1773341444881,-401.0,0.00020799,2]
[408274026,1773341444892,-401.0,0.00020813,2]
[408274027,1773341444902,-401.0,0.00020876,2]
[408274028,1773341444912,-401.0,0.00020962,2]
[408274029,1773341444922,-166.02,0.00020981,2]
[408274030,1773341444932,-401.0,0.00020984,2]
[408274031,1773341444942,-401.0,0.00020996,2]
[408274032,1773341444952,-400.0,0.00021,2]
[408274033,1773341444964,-401.0,0.00021062,2]
[408274034,1773341444974,-401.0,0.00021108,2]
[408274035,1773341444986,-401.0,0.00021132,2]
[408274036,1773341444996,-25915.2908368,0.00021193,2]
[408274037,1773341445006,-401.0,0.000212,2]
[408274038,1773341445016,-401.0,0.00021208,2]
[408274039,1773341445026,-401.0,0.00021224,2]
[408274040,1773341445035,-401.0,0.00021228,2]
[408274041,1773341445045,-401.0,0.00021238,2]
[408274042,1773341445055,-401.0,0.00021308,2]
[408274043,1773341445066,-247.48115388,0.00021339,2]
[408274044,1773341445076,-401.0,0.00021345,2]
[408274045,1773341445086,-599.60298507,0.00021389,2]
[408274046,1773341445096,-500.0,0.00021416,2]
[408274047,1773341445106,-242.11,0.00021429,2]
[408274048,1773341445116,-2000.0,0.00021518,2]
[408274049,1773341445126,-820.7005813,0.0002177,2]
[408274050,1773341445135,-68902.4730058,0.00021772,2]
[408274051,1773341445146,-1666.7,0.00021776,2]
[408274052,1773341445156,-1252.43,0.00021777,2]
[408274053,1773341445166,-169.62,0.00021918,2]
[408274054,1773341445176,-5000.0,0.00021918,2]
[408274055,1773341445185,-507.0,0.0002204,6]
[408274056,1773341445194,-14951.58915564,0.00022086,2]
[408274057,1773341445204,-166.02,0.00022215,2]
[408274058,1773341445214,-1152.0,0.0002229,2]
[408274059,1773341445223,-183.1230521,0.00022316,2]
[408274060,1773341445232,-15374.2198364,0.00022319,2]
[408274061,1773341445241,-179.33,0.00022391,2]
[408274062,1773341445252,-1295.19930183,0.00022489,10]
[408274063,1773341445264,-25915.2908368,0.00022598,2]
[408274064,1773341445274,-2570.0,0.00022743,2]
[408274065,1773341445283,-315.0,0.00023126,120]
[408274066,1773341445294,-989.0,0.00023126,120]
[408274067,1773341445304,-500.0,0.00023178,2]
[408274068,1773341445313,-242.26,0.00023358,2]
[408274069,1773341445322,-14951.58915564,0.00023389,2]
[408274070,1773341445332,-2000.0,0.00023474,2]
[408274071,1773341445341,-1252.43,0.00023757,2]
[408274072,1773341445351,-25915.2908368,0.00024003,2]
[408274073,1773341445360,-163.50554828,0.0002403,2]
[408274074,1773341445371,-621.78829552,0.00024128,2]
[408274075,1773341445381,-1025.0,0.00024381,2]
[408274076,1773341445390,-507.0,0.0002456,8]
[408274077,1773341445400,-1000.0,0.00024658,2]
[408274078,1773341445409,-1923.51,0.00024666,2]
[408274079,1773341445420,-14951.58915564,0.00024692,2]
[408274080,1773341445431,-500.0,0.00024899,2]
[408274081,1773341445441,-267.2,0.00024899,2]
[408274082,1773341445451,-500.0,0.00024899,2]
[408274083,1773341445462,-151.0,0.000249,2]
[408274084,1773341445473,-606484.902056,0.000249,3]
[408274085,1773341445483,-250.0,0.00025,7]
[408274086,1773341445494,-325.0,0.00025,20]
[408274087,1773341445503,-6851.07560243,0.00025238,2]
[408274088,1773341445513,-10040.65489013,0.00025408,2]
[408274089,1773341445532,-981.82419394,0.00025408,2]
[408274090,1773341445545,-14892.81175273,0.00025408,2]
[408274091,1773341445555,-500.0,0.00025962,2]
[408274092,1773341445564,-14951.58915564,0.00025994,2]
[408274093,1773341445574,-539.0,0.00026242,10]
[408274094,1773341445586,-179.33,0.00026268,2]
[408274095,1773341445595,-500.0,0.00026402,2]
[408274096,1773341445605,-2238.98499309,0.00026813,2]
[408274097,1773341445678,-1882.07643001,0.00026813,2]
[408274098,1773341445689,-3400.0,0.00026813,2]
[408274099,1773341445701,-4665.94943356,0.00026813,2]
[408274105,1773341445845,-2000.0,0.000198,2]
[408274108,1773341445855,-625.15106584,0.000199,2]
[408274118,1773341446815,-1374.84893416,0.000199,2]
[408274119,1773341446826,-2840.94653702,0.00026813,2]
[408274120,1773341446839,-669.08116327,0.00026813,2]
[408274121,1773341446897,-416.85086054,0.00026813,2]
[408274122,1773341446914,-9801.40141931,0.00026813,2]
[408274123,1773341446927,-779.01764009,0.00026867,2]
[408274124,1773341446940,-202.94772925,0.00027045,44]
[408274125,1773341446953,-507.0,0.0002708,11]
[408274126,1773341446964,-150.0,0.0002727,44]
[408274127,1773341446976,-154.42159387,0.0002727,44]
[408274128,1773341446988,-14951.58915564,0.00027297,2]
[408274129,1773341446999,-1000.0,0.00027397,20]
[408274130,1773341447010,-300.0,0.00027397,2]
[408274131,1773341447020,-151.0,0.00027397,2]
[408274132,1773341447031,-151.0,0.00027397,2]
[408274133,1773341447043,-3430.63692755,0.00027397,10]
[408274134,1773341447082,-2348.09,0.00027397,10]
[408274135,1773341544271,500.0,9.4e-05,2]
[408274136,1773341876239,978.86,7.479e-05,2]
[408274137,1773341876450,978.86,7.872e-05,2]
[408274138,1773341876667,978.86,8.266e-05,2]
[408274139,1773341876873,978.86,8.66e-05,2]
[408274140,1773341877079,978.86,9.053e-05,2]
[408274141,1773341877303,978.86,9.447e-05,2]
[408274142,1773341877497,978.86,9.84e-05,2]
[408274143,1773341877820,978.86,0.00010234,2]
[408274144,1773341878071,978.86,0.00010628,2]
[408274145,1773341878291,978.86,0.00011021,2]
[408274146,1773341878494,211.41,0.00011415,2]
[408274147,1773341878520,767.45,0.00011415,2]
[408274148,1773341878806,978.86,0.00011809,2]
[408274149,1773341879006,978.86,0.00012202,2]
[408274150,1773341879222,978.86,0.00012596,2]
[408274151,1773341879534,978.86,0.00012989,2]
[408274152,1773341879760,978.86,0.00013383,2]
[408274153,1773341879972,978.86,0.00013777,2]
[408274154,1773341880191,978.86,0.0001417,2]
[408274155,1773341930303,3121.0,0.000144,2]
[408274158,1773342131602,1000.0,0.000135,2]
[408274159,1773342140614,150.0,0.00014395,2]
[408274162,1773342158963,15169.69686735,9.5e-05,3]
[408274164,1773342437863,1413.16,0.00014319,2]
[408274358,1773342576148,1600.0,0.00014241,2]
[408274369,1773342632201,-300.0,0.00014452,2]
[408274371,1773342632211,-300.0,0.00014452,2]
[408274373,1773342632220,-1200.0,0.00014452,2]
[408274374,1773342632230,-250.0,0.00014453,2]
[408274376,1773342632239,-908.28,0.00014453,2]
[408274378,1773342632249,-3125.04086482,0.00014453,2]
[408274381,1773342632260,-20042.37913518,0.00014453,2]
[408274383,1773342632269,-978.86,0.00014564,2]
[408274384,1773342632279,-1600.0,0.00014597,2]
[408274385,1773342632289,-150.0,0.00014599,2]
[408274387,1773342632299,-3240.0,0.000146,2]
[408274390,1773342632309,-1852.42,0.000146,2]
[408274391,1773342632318,-500.0,0.0001466,2]
[408274393,1773342632328,-9179.97322826,0.00014742,2]
[408274396,1773342632339,-33697.27433593,0.00014742,2]
[408274404,1773342638114,-9365.50393929,0.00014742,2]
[408274405,1773342638125,-3350.70995216,0.00014742,2]
[408274406,1773342638171,-674.18499106,0.00014742,2]
[408274407,1773342638183,-956.79071888,0.00014742,2]
[408274408,1773342638195,-18597.26526197,0.00014742,2]
[408274409,1773342638275,-68158.52047245,0.00014742,2]
[408274410,1773342638284,-751.46,0.00014778,2]
[408274411,1773342638293,-500.0,0.0001481,2]
[408274412,1773342638302,-590.01952761,0.0001481,2]
[408274640,1773342640467,-909.98047239,0.0001481,2]
[408274642,1773342640477,-3428.56,0.0001481,2]
[408274644,1773342640486,-150.99,0.0001481,2]
[408274646,1773342640495,-843.11538604,0.00014842,2]
[408274648,1773342640505,-6274.1,0.00014842,2]
[408274650,1773342640514,-9999.99,0.00014842,2]
[408274652,1773342640523,-14512.39,0.00014842,2]
[408274654,1773342640532,-1545.8,0.00014842,2]
[408274656,1773342640541,-499.99,0.00014842,2]
[408274658,1773342640550,-983.1,0.00014842,2]
[408274660,1773342640560,-150.99,0.00014842,2]
[408274662,1773342640569,-9999.99,0.00014842,2]
[408274664,1773342640578,-1600.0,0.00014953,2]
[408274666,1773342640587,-416.0,0.00014954,2]
[408274668,1773342640597,-388.0,0.00014954,2]
[408274670,1773342640606,-978.86,0.00014957,2]
[408274672,1773342640616,-1135.0,0.00014984,2]
[408274674,1773342640625,-342.99209941,0.00014984,2]
[408274676,1773342640633,-500.0,0.00015,30]
[408274678,1773342640643,-500.0,0.00015,30]
[408274680,1773342640652,-500.0,0.00015,30]
[408274682,1773342640661,-500.0,0.00015,30]
[408274684,1773342640670,-500.0,0.00015,30]
[408274686,1773342640680,-269.0,0.0001501,2]
[408274688,1773342640689,-354.0,0.00015028,2]
[408274690,1773342640698,-248.0,0.00015058,2]
[408274692,1773342640707,-735.0,0.00015076,2]
[408274694,1773342640716,-246.0,0.00015088,2]
[408274696,1773342640726,-1969.63,0.00015091,2]
[408274698,1773342640735,-830.0,0.00015106,2]
[408274700,1773342640744,-6166.67,0.00015112,2]
[408274702,1773342640753,-1365.0,0.00015136,2]
[408274703,1773342640762,-908.28,0.00015176,2]
[408274705,1773342640772,-1600.0,0.00015309,2]
[408274707,1773342640781,-2784.97,0.00015309,2]
[408274709,1773342640790,-500.0,0.00015309,2]
[408274711,1773342640798,-977.60874903,0.000154,3]
[408274713,1773342640807,-1081.84031392,0.000154,3]
[408274715,1773342640816,-1057.7118476,0.000154,3]
[408274717,1773342640825,-450.77582695,0.000154,3]
[408274719,1773342640834,-152.69220997,0.000154,3]
[408274721,1773342640843,-162.13885783,0.000154,3]
[408274723,1773342640853,-1047.43,0.000154,2]
[408274725,1773342640862,-12119.05201194,0.00015408,2]
[408274727,1773342640873,-411.0714,0.00015409,2]
[408274729,1773342640883,-163.50554828,0.0001541,2]
[408274731,1773342640893,-152.17434478,0.0001541,2]
[408274733,1773342640902,-5171.64885566,0.0001541,2]
[408274735,1773342640911,-197.23311885,0.0001541,2]
[408274737,1773342640921,-1813.45052894,0.00015448,2]
[408274739,1773342640930,-316.53,0.00015498,2]
[408274741,1773342640939,-316.53,0.00015499,2]
[408274743,1773342640949,-316.53,0.00015499,2]
[408274745,1773342640958,-316.53,0.00015499,2]
[408274747,1773342640967,-316.53,0.00015499,2]
[408274749,1773342640976,-5400.0,0.000155,5]
[408274751,1773342640985,-151.0,0.00015507,2]
[408274753,1773342640995,-151.0,0.00015507,2]
[408274755,1773342641008,-151.0,0.00015507,2]
[408274757,1773342641023,-4954.7721667,0.00015508,2]
[408274759,1773342641032,-500.0,0.00015508,2]
[408274761,1773342641041,-500.0,0.00015508,2]
[408274763,1773342641051,-500.0,0.00015508,2]
[408274766,1773342641060,-500.0,0.00015508,2]
[408274769,1773342641069,-500.0,0.00015508,2]
[408274771,1773342641078,-500.0,0.00015508,2]
[408274774,1773342641087,-500.0,0.00015508,2]
[408274776,1773342641096,-500.0,0.00015508,2]
[408274778,1773342641106,-500.0,0.00015508,2]
[408274780,1773342641115,-500.0,0.00015508,2]
[408274782,1773342641124,-500.0,0.00015508,2]
[408274784,1773342641133,-500.0,0.00015508,2]
[408274786,1773342641142,-500.0,0.00015508,2]
[408274789,1773342641152,-500.0,0.00015508,2]
[408274791,1773342641161,-500.0,0.00015508,2]
[408274793,1773342641170,-500.0,0.00015508,2]
[408274795,1773342641179,-500.0,0.00015508,2]
[408274796,1773342641189,-500.0,0.00015508,2]
[408274798,1773342641197,-500.0,0.00015508,2]
[408274800,1773342641206,-500.0,0.00015508,2]
[408274802,1773342641216,-500.0,0.00015508,2]
[408274804,1773342641225,-500.0,0.00015508,2]
[408274807,1773342641235,-500.0,0.00015508,2]
[408274809,1773342641244,-500.0,0.00015508,2]
[408274811,1773342641253,-500.0,0.00015508,2]
[408274813,1773342641262,-500.0,0.00015508,2]
[408274815,1773342641271,-500.0,0.00015508,2]
[408274817,1773342641280,-500.0,0.00015508,2]
[408274818,1773342641290,-500.0,0.00015508,2]
[408274820,1773342641299,-500.0,0.00015508,2]
[408274822,1773342641308,-500.0,0.00015508,2]
[408274824,1773342641317,-500.0,0.00015508,2]
[408274825,1773342641326,-374.20481784,0.00015508,2]
[408274826,1773342641335,-293.01216314,0.00015508,2]
[408274827,1773342641344,-500.0,0.00015508,2]
[408274828,1773342641353,-500.0,0.00015508,2]
[408274829,1773342641362,-645.18548718,0.00015508,2]
[408274830,1773342641371,-188.44046308,0.00015508,2]
[408274831,1773342641380,-500.0,0.00015508,2]
[408274832,1773342641389,-500.0,0.00015508,2]
[408274833,1773342641398,-432.9957781,0.00015508,2]
[408274834,1773342641407,-500.0,0.00015508,2]
[408274835,1773342641415,-500.0,0.00015508,2]
[408274836,1773342641424,-500.0,0.00015508,2]
[408274837,1773342641433,-666.0,0.00015508,2]
[408274838,1773342641441,-255.96292911,0.00015509,2]
[408274839,1773342641450,-32942.6924,0.0001551,2]
[408274840,1773342641459,-1000.0,0.0001551,2]
[408274841,1773342641468,-1057.2304,0.0001551,2]
[408274842,1773342641477,-130901.10011191,0.00015536,2]
[408274843,1773342641486,-371.73960843,0.00015573,2]
[408274844,1773342641495,-500.0,0.00015573,2]
[408274845,1773342641504,-165.01569282,0.00015573,2]
[408274846,1773342641513,-500.37983606,0.00015573,2]
[408274847,1773342641523,-500.0,0.00015573,2]
[408274848,1773342641532,-500.0,0.00015573,2]
[408274850,1773342641540,-500.0,0.00015573,2]
[408274852,1773342641549,-500.0,0.00015573,2]
[408274854,1773342641558,-500.0,0.00015573,2]
[408274856,1773342641567,-500.0,0.00015573,2]
[408274858,1773342641577,-500.0,0.00015573,2]
[408274860,1773342641587,-500.28721314,0.00015573,2]
[408274862,1773342641596,-500.0,0.00015573,2]
[408274864,1773342641606,-367.07901164,0.00015573,2]
[408274866,1773342641616,-500.0,0.00015573,2]
[408274868,1773342641625,-500.0,0.00015573,2]
[408274870,1773342641634,-500.0,0.00015573,2]
[408274872,1773342641644,-500.0,0.00015573,2]
[408274874,1773342641653,-500.0,0.00015573,2]
[408274876,1773342641663,-500.0,0.00015573,2]
[408274878,1773342641672,-500.0,0.00015573,2]
[408274880,1773342641681,-164.00773729,0.00015573,2]
[408274882,1773342641690,-12119.0520119,0.00015574,2]
[408274884,1773342641699,-10800.0,0.000156,5]
[408274886,1773342641708,-500.0,0.00015609,2]
[408274888,1773342641718,-500.0,0.00015609,2]
[408274891,1773342641737,-500.0,0.00015609,2]
[408274893,1773342641747,-500.0,0.00015609,2]
[408274894,1773342641756,-500.0,0.00015609,2]
[408274896,1773342641765,-500.0,0.00015609,2]
[408274897,1773342641774,-500.0,0.00015609,2]
[408274899,1773342641783,-514.75306544,0.00015609,2]
[408274901,1773342641793,-297.89846423,0.00015609,2]
[408274903,1773342641802,-500.0,0.00015609,2]
[408274905,1773342641812,-500.0,0.00015609,2]
[408274907,1773342641821,-500.0,0.00015609,2]
[408274909,1773342641831,-196.82,0.00015609,2]
[408274911,1773342641840,-500.0,0.00015609,2]
[408274913,1773342641851,-500.0,0.00015609,2]
[408274915,1773342641860,-500.0,0.00015609,2]
[408274917,1773342641869,-500.0,0.00015609,2]
[408274919,1773342641882,-500.0,0.00015609,2]
[408274921,1773342641891,-500.0,0.00015609,2]
[408274923,1773342641902,-500.0,0.00015609,2]
[408274925,1773342641911,-500.0,0.00015609,2]
[408274927,1773342641921,-500.0,0.00015609,2]
[408274929,1773342641930,-500.0,0.00015609,2]
[408274931,1773342641940,-500.0,0.00015609,2]
[408274933,1773342641950,-500.0,0.00015609,2]
[408274935,1773342641959,-500.0,0.00015609,2]
[408274937,1773342641968,-500.0,0.00015609,2]
[408274939,1773342641977,-500.0,0.00015609,2]
[408274940,1773342641986,-500.0,0.00015609,2]
[408274942,1773342641995,-500.0,0.00015609,2]
[408274944,1773342642004,-500.0,0.00015609,2]
[408274946,1773342642013,-539.98986878,0.00015609,2]
[408274948,1773342642023,-500.0,0.00015609,2]
[408274950,1773342642032,-500.0,0.00015609,2]
[408274952,1773342642041,-500.0,0.00015609,2]
[408274954,1773342642050,-500.0,0.00015609,2]
[408274956,1773342642060,-500.0,0.00015609,2]
[408274958,1773342642069,-500.0,0.00015609,2]
[408274960,1773342642079,-500.0,0.00015609,2]
[408274962,1773342642088,-500.0,0.00015609,2]
[408274964,1773342642097,-500.0,0.00015609,2]
[408274966,1773342642107,-500.0,0.00015609,2]
[408274968,1773342642116,-500.0,0.00015609,2]
[408274970,1773342642125,-500.0,0.00015609,2]
[408274972,1773342642135,-500.0,0.00015609,2]
[408274974,1773342642144,-500.0,0.00015609,2]
[408274976,1773342642153,-500.0,0.00015609,2]
[408274978,1773342642163,-500.0,0.00015609,2]
[408274980,1773342642172,-646.2283814,0.00015609,2]
[408274981,1773342642181,-500.0,0.00015609,2]
[408274983,1773342642190,-551.6181156,0.00015609,2]
[408274985,1773342642199,-500.0,0.00015609,2]
[408274987,1773342642208,-500.0,0.00015609,2]
[408274989,1773342642217,-500.0,0.00015609,2]
[408274991,1773342642226,-500.0,0.00015609,2]
[408274993,1773342642235,-500.0,0.00015609,2]
[408274995,1773342642245,-500.0,0.00015609,2]
[408274997,1773342642254,-500.0,0.00015609,2]
[408274999,1773342642263,-500.0,0.00015609,2]
[408275001,1773342642275,-500.0,0.00015609,2]
[408275003,1773342642284,-1600.0,0.00015665,2]
[408275005,1773342642294,-16200.0,0.000157,5]
[408275007,1773342642303,-255.0,0.00015723,2]
[408275009,1773342642313,-12119.0520119,0.0001574,2]
[408275011,1773342642322,-21600.0,0.000158,5]
[408275013,1773342642332,-1680.0,0.00015897,2]
[408275015,1773342642341,-600.0,0.00015897,2]
[408275017,1773342642351,-250.0,0.00015897,2]
[408275019,1773342642361,-250.0,0.00015897,2]
[408275021,1773342642370,-908.28,0.00015898,2]
[408275023,1773342642381,-27000.0,0.000159,5]
[408275025,1773342642390,-12119.0520119,0.00015905,2]
[408275027,1773342642400,-12119.0520119,0.00016071,2]
[408275029,1773342642409,-1000.0,0.00016121,2]
[408275031,1773342642419,-1000.0,0.00016121,2]
[408275033,1773342642428,-1000.0,0.00016121,2]
[408275035,1773342642437,-1000.0,0.00016121,2]
[408275037,1773342642447,-500.0,0.00016121,2]
[408275039,1773342642456,-1000.0,0.00016121,2]
[408275041,1773342642465,-1000.0,0.00016121,2]
[408275043,1773342642474,-992.30019781,0.00016121,2]
[408275045,1773342642484,-312.31798352,0.00016121,2]
[408275047,1773342642494,-445.92650306,0.00016121,2]
[408275049,1773342642507,-1000.0,0.00016121,2]
[408275051,1773342642516,-1000.0,0.00016121,2]
[408275053,1773342642526,-168.3299599,0.00016121,2]
[408275055,1773342642535,-9765.64761061,0.000162,5]
[408275057,1773342642544,-151.0,0.000162,2]
[408275059,1773342642553,-151.0,0.000162,2]
[408275061,1773342642562,-12119.0520119,0.00016237,2]
[408275062,1773342642571,-500.0,0.00016399,2]
[408275064,1773342642581,-500.0,0.00016399,2]
[408275066,1773342642590,-500.0,0.00016399,2]
[408275068,1773342642599,-12119.0520119,0.00016403,2]
[408275070,1773342642609,-12119.0520119,0.00016568,2]
[408275072,1773342642618,-908.28,0.00016621,2]
[408275074,1773342642627,-751.46,0.00016626,2]
[408275076,1773342642637,-151.0,0.00016668,2]
[408275078,1773342642647,-1039.63237117,0.00016668,2]
[408275080,1773342642657,-1500.0,0.00016668,2]
[408275082,1773342642667,-1526.17740878,0.00016668,2]
[408275084,1773342642676,-360.72006406,0.00016668,2]
[408275086,1773342642686,-1500.0,0.00016668,2]
[408275088,1773342642696,-1500.0,0.00016668,2]
[408275090,1773342642706,-1500.0,0.00016668,2]
[408275092,1773342642715,-166.34,0.00016712,2]
[408275094,1773342642724,-12119.0520119,0.00016734,2]
[408275096,1773342642734,-12119.0520119,0.000169,2]
[408275098,1773342642743,-151.0,0.00016927,2]
[408275100,1773342642752,-260.138692,0.00016927,2]
[408275102,1773342642761,-151.0,0.00016927,2]
[408275104,1773342642770,-151.0,0.00016927,2]
[408275106,1773342642780,-319.0,0.00016935,2]
[408275108,1773342642789,-225.97976062,0.00016973,2]
[408275110,1773342642798,-300.0,0.00016999,2]
[408275112,1773342642807,-300.0,0.00016999,2]
[408275114,1773342642816,-229.15310187,0.00016999,2]
[408275116,1773342642826,-650707.66359033,0.00017,2]
[408275118,1773342642835,-151.0,0.00017,2]
[408275120,1773342642844,-152.22165155,0.00017,2]
[408275122,1773342642854,-151.0,0.00017,2]
[408275125,1773342642863,-151.0,0.00017,2]
[408275126,1773342642873,-151.0,0.00017,2]
[408275129,1773342642884,-151.0,0.00017,2]
[408275131,1773342642893,-151.0,0.00017,2]
[408275133,1773342642903,-215.896388,0.00017,2]
[408275135,1773342642912,-507.0,0.00017,2]
[408275137,1773342642922,-151.0,0.00017,2]
[408275139,1773342642932,-283.69039474,0.00017073,2]
[408275141,1773342642941,-500.0,0.00017073,2]
[408275143,1773342642950,-500.0,0.00017073,2]
[408275145,1773342642959,-500.89524145,0.00017073,2]
[408275147,1773342642969,-502.44343779,0.00017073,2]
[408275149,1773342642978,-500.0,0.00017073,2]
[408275151,1773342642987,-500.0,0.00017073,2]
[408275153,1773342642997,-500.0,0.00017073,2]
[408275155,1773342643006,-77622.37824573,0.000171,2]
[408275157,1773342643015,-2000.0,0.00017216,2]
[408275159,1773342643025,-2000.0,0.00017216,2]
[408275161,1773342643034,-2000.0,0.00017216,2]
[408275163,1773342643044,-908.28,0.00017344,2]
[408275165,1773342643053,-2351.0,0.00017487,2]
[408275167,1773342643062,-786.82467732,0.000177,2]
[408275170,1773342643071,-150.0,0.00017753,2]
[408275173,1773342643080,-500.0,0.00017753,2]
[408275175,1773342643090,-204.83861542,0.00017753,2]
[408275177,1773342643100,-250.0,0.00017753,2]
[408275179,1773342643110,-500.0,0.00017753,2]
[408275182,1773342643119,-500.0,0.00017753,2]
[408275185,1773342643128,-500.0,0.00017753,2]
[408275188,1773342643137,-500.0,0.00017753,2]
[408275191,1773342643146,-177.62322685,0.00017753,2]
[408275193,1773342643156,-454.0,0.00017753,2]
[408275195,1773342643166,-150.0,0.00017753,2]